bitfinex/quotes_ETHUSD_20230831
["timestamp","ask_amount","ask_price","bid_price","bid_amount"]
[1693506046319,1.88816168,1662.2,1662.1,0.1]
[1693506046520,4.753064,1662.2,1662.1,0.1]
[1693506046710,0.240974,1662.2,1662.1,0.1]
[1693506048323,4.753064,1662.2,1662.1,0.1]
[1693506048920,9.265154,1662.2,1662.1,0.1]
[1693506058838,10.52709059,1662.2,1662.1,0.1]
[1693506060520,12.458214,1662.2,1662.1,0.1]
[1693506061467,14.03563474,1662.2,1662.1,0.1]
[1693506061684,19.96337804,1662.2,1662.1,0.1]
[1693506061846,25.23850511,1662.2,1662.1,0.1]
[1693506062052,27.44689415,1662.2,1662.1,0.1]
[1693506063340,25.71850511,1662.2,1661.9,0.002]
[1693506063678,10.99498972,1662.1,1661.9,0.002]
[1693506063968,10.99498972,1662.1,1661.8,0.71486818]
[1693506063969,24.53206972,1662.1,1661.8,0.71486818]
[1693506066875,25.01206972,1662.1,1661.8,0.71486818]
[1693506069386,23.11906821,1662.1,1661.8,0.71486818]
[1693506069694,25.00847424,1662.1,1661.8,0.71486818]
[1693506071782,25.00826637,1662.1,1661.8,0.71486818]
[1693506072276,23.11906821,1662.1,1661.8,0.71486818]
[1693506072483,25.0079769,1662.1,1661.8,0.71486818]
[1693506072859,25.00803096,1662.1,1661.8,0.71486818]
[1693506073054,23.11906821,1662.1,1661.8,0.71486818]
[1693506073384,25.00782519,1662.1,1661.8,0.71486818]
[1693506074980,24.52782519,1662.1,1661.8,0.71486818]
[1693506075889,25.020814,1662.1,1661.8,0.71486818]
[1693506076079,23.13205702,1662.1,1661.8,0.71486818]
[1693506077094,22.52966262,1662.1,1661.8,0.71486818]
[1693506079602,24.10319859,1662.1,1661.8,0.71486818]
[1693506079770,22.52966262,1662.1,1661.8,0.71486818]
[1693506079970,24.10325435,1662.1,1661.8,0.71486818]
[1693506081613,16.66312346,1662.1,1661.8,0.71486818]
[1693506081799,14.09127295,1662.1,1661.8,2.71146818]
[1693506082187,9.57891295,1662.1,1661.8,0.71486818]
[1693506082375,15.35026102,1662.1,1661.8,2.71146818]
[1693506085914,13.77669688,1662.1,1661.8,2.71146818]
[1693506086409,15.35026102,1662.1,1661.8,2.71146818]
[1693506086909,10.83790102,1662.1,1661.8,2.71146818]
[1693506088816,9.57891295,1662.1,1661.8,2.71146818]
[1693506089314,14.09127295,1662.1,1661.8,2.71146818]
[1693506092232,9.57891295,1662.1,1661.8,2.71146818]
[1693506093314,9.58235446,1662.1,1661.8,2.71146818]
[1693506097320,8.00879032,1662.1,1661.8,2.71146818]
[1693506100637,0.49643032,1662.1,1661.8,2.71146818]
[1693506101029,2.07401339,1662.1,1661.8,2.71146818]
[1693506101213,1.58102458,1662.1,1661.8,2.71146818]
[1693506102036,2.84334173,1662.1,1661.8,2.71146818]
[1693506102629,1.26575866,1662.1,1661.8,2.71146818]
[1693506104614,1.26575866,1662.1,1662.0,1.88398048]
[1693506109660,5.77811866,1662.1,1662.0,1.88398048]
[1693506110248,5.77811866,1662.1,1662.0,0.1]
[1693506110847,5.77811866,1662.1,1662.0,1.88401502]
[1693506113148,1.26575866,1662.1,1662.0,1.88401502]
[1693506119064,10.29047866,1662.1,1662.0,1.88401502]
[1693506119278,7.44023123,1662.1,1662.0,1.88401502]
[1693506119459,11.1401143,1662.1,1662.0,1.88401502]
[1693506119657,6.6277543,1662.1,1662.0,0.1]
[1693506123442,5.36543715,1662.1,1662.0,0.1]
[1693506126773,4.96641995,1662.1,1662.0,0.1]
[1693506127478,3.70332458,1662.1,1662.0,0.1]
[1693506128363,3.70332458,1662.1,1662.0,1.90826295]
[1693506134488,4.19024169,1662.1,1662.0,1.90826295]
[1693506134986,4.19024169,1662.1,1662.0,0.1]
[1693506142359,2.61265862,1662.1,1662.0,0.1]
[1693506142558,4.19187159,1662.1,1662.0,0.1]
[1693506143394,2.61265862,1662.1,1662.0,0.1]
[1693506145900,4.50792665,1662.1,1662.0,0.1]
[1693506146198,5.88524872,1662.1,1662.0,0.1]
[1693506147711,4.50792665,1662.1,1662.0,0.1]
[1693506151297,9.02028665,1662.1,1662.0,0.1]
[1693506154302,4.50792665,1662.1,1662.0,0.1]
[1693506154770,4.50854772,1662.1,1662.0,0.1]
[1693506159310,1.5833519,1662.1,1662.0,0.1]
[1693506159510,1.5833519,1662.1,1662.0,3.5077433]
[1693506159710,1.26744467,1662.1,1662.0,3.85851763]
[1693506159909,0.95147985,1662.1,1662.0,5.70529258]
[1693506160114,2.21548301,1662.1,1662.0,5.70529258]
[1693506160312,0.95147985,1662.1,1662.0,5.70529258]
[1693506160704,0.95147985,1662.1,1662.0,3.85851763]
[1693506161223,0.95147985,1662.1,1662.0,5.70553136]
[1693506161386,0.95147985,1662.1,1662.0,12.02953136]
[1693506161591,0.00344151,1662.1,1662.0,12.02953136]
[1693506163220,0.00344151,1662.1,1662.0,5.70553136]
[1693506169337,0.00344151,1662.1,1662.0,5.17613596]
[1693506174373,0.00344151,1662.1,1662.0,1.76839266]
[1693506174654,4.51580151,1662.1,1662.0,1.41761833]
[1693506174861,0.00344151,1662.1,1662.0,1.41761833]
[1693506175619,0.00344151,1662.1,1662.0,0.1]
[1693506176054,0.00344151,1662.1,1662.0,1.94452861]
[1693506182566,13.54052151,1662.1,1662.0,1.94452861]
[1693506182771,16.28046615,1662.1,1662.0,1.94452861]
[1693506183480,11.77183851,1662.1,1662.0,1.94452861]
[1693506186240,9.97993221,1662.1,1662.0,1.94452861]
[1693506186446,0.95521221,1662.1,1662.0,1.94452861]
[1693506186740,0.00717387,1662.1,1662.0,1.94452861]
[1693506199197,0.49255401,1662.1,1662.0,1.41866035]
[1693506199397,0.00717387,1662.1,1662.0,1.41866035]
[1693506199600,0.00717387,1662.1,1662.0,4.34640365]
[1693506199787,0.00717387,1662.1,1662.0,4.78104402]
[1693506202501,0.95521221,1662.1,1662.0,4.73104402]
[1693506203600,0.00717387,1662.1,1662.0,5.21104402]
[1693506204014,0.00717387,1662.1,1662.0,8.21104402]
[1693506204382,0.00717387,1662.1,1662.0,29.60742223]
[1693506204587,0.00717387,1662.1,1662.0,30.65347246]
[1693506204904,0.94803834,1662.5,1662.3,3.0]
[1693506205212,0.94803834,1662.5,1662.4,3.4077433]
[1693506205417,0.94803834,1662.5,1662.4,4.04851763]
[1693506208391,2.2120415,1662.6,1662.4,4.04851763]
[1693506209509,0.94803834,1662.6,1662.4,4.04851763]
[1693506213320,3.14553834,1662.6,1662.4,4.04851763]
[1693506214287,3.14553834,1662.6,1662.5,1.31995402]
[1693506214524,3.14553834,1662.6,1662.5,4.24769732]
[1693506222522,3.14553834,1662.6,1662.5,4.78454448]
[1693506224933,3.14553834,1662.6,1662.5,4.24769732]
[1693506230035,2.1975,1662.6,1662.5,4.24769732]
[1693506233118,2.62249188,1662.6,1662.5,4.24769732]
[1693506242959,0.42499188,1662.6,1662.5,4.24769732]
[1693506243129,0.42499188,1662.6,1662.5,4.72769732]
[1693506243459,0.42499188,1662.6,1662.5,5.31254449]
[1693506245661,0.42499188,1662.6,1662.5,17.63654449]
[1693506246255,0.42499188,1662.6,1662.5,18.68231081]
[1693506246960,0.42499188,1662.6,1662.5,19.10730281]
[1693506248948,0.42499188,1662.6,1662.5,18.68231081]
[1693506252141,0.42499188,1662.6,1662.5,19.16441612]
[1693506254105,0.42499188,1662.6,1662.5,19.76681052]
[1693506258297,0.42499188,1662.6,1662.5,19.95129805]
[1693506267601,1e-08,1662.6,1662.5,19.95129805]
[1693506271311,1e-08,1662.6,1662.5,19.34890365]
[1693506272702,1e-08,1662.6,1662.5,19.98136573]
[1693506273222,1e-08,1662.6,1662.5,19.34890365]
[1693506273419,1e-08,1662.6,1662.5,26.05143627]
[1693506274225,1e-08,1662.6,1662.5,26.05147244]
[1693506277737,1e-08,1662.6,1662.5,27.00016556]
[1693506278639,1e-08,1662.6,1662.5,26.36770348]
[1693506278842,1e-08,1662.6,1662.5,26.99774658]
[1693506279342,1e-08,1662.6,1662.5,26.99781638]
[1693506281351,1e-08,1662.6,1662.5,26.36770348]
[1693506283958,1e-08,1662.6,1662.5,27.63262764]
[1693506285449,1e-08,1662.6,1662.5,26.68393452]
[1693506286425,1e-08,1662.6,1662.5,27.63044204]
[1693506287835,1e-08,1662.6,1662.5,26.36551788]
[1693506288154,1e-08,1662.6,1662.5,27.63044204]
[1693506288327,1e-08,1662.6,1662.5,26.68393452]
[1693506289456,1e-08,1662.6,1662.5,27.63074668]
[1693506289958,1e-08,1662.6,1662.5,26.68384843]
[1693506290457,1e-08,1662.6,1662.5,27.6310095]
[1693506290637,1e-08,1662.6,1662.5,26.68384843]
[1693506291065,1e-08,1662.6,1662.5,27.5898602]
[1693506291630,1e-08,1662.6,1662.5,27.5898471]
[1693506291923,1e-08,1662.6,1662.5,28.1922415]
[1693506292343,1e-08,1662.6,1662.5,30.0780415]
[1693506295361,1e-08,1662.6,1662.5,31.02560154]
[1693506295770,1e-08,1662.6,1662.5,30.39427254]
[1693506295936,0.002,1663.0,1662.9,9.324]
[1693506296138,2.1077,1663.1,1662.9,23.47914643]
[1693506296337,2.1077,1663.1,1663.0,3.97350962]
[1693506296542,2.1077,1663.1,1663.0,3.4077433]
[1693506296968,2.1077,1663.1,1663.0,9.7317433]
[1693506297132,2.1077,1663.1,1663.0,10.807158]
[1693506299165,0.002,1663.3,1663.2,6.324]
[1693506299340,2.0314,1663.6,1663.5,2.998]
[1693506299683,2.0314,1663.6,1663.5,9.4057433]
[1693506299892,0.101,1663.8,1663.5,10.34631763]
[1693506300197,2.1324,1663.8,1663.6,3.4077433]
[1693506300399,2.1324,1663.8,1663.5,0.94057433]
[1693506300685,6.6402,1663.8,1663.5,2.9277433]
[1693506301033,2.1324,1663.8,1663.5,2.9277433]
[1693506302455,2.1344,1663.8,1663.5,2.9277433]
[1693506304266,2.1344,1663.8,1663.6,1.33586423]
[1693506304460,4.3531,1663.8,1663.7,2.9277433]
[1693506304663,2.3217,1663.8,1663.7,3.4077433]
[1693506305318,6.82945,1663.8,1663.7,4.74306966]
[1693506305597,2.3217,1663.8,1663.7,4.74306966]
[1693506305795,12.470897,1663.8,1663.7,1.33532636]
[1693506306094,10.250197,1663.8,1663.1,12.324]
[1693506306266,0.002,1663.7,1663.2,5.9297433]
[1693506306466,0.002,1663.7,1663.2,5.9277433]
[1693506306698,4.51005,1663.7,1663.2,5.9277433]
[1693506306910,14.7489397,1663.7,1663.2,2.9277433]
[1693506307051,15.3513341,1663.7,1663.2,2.9277433]
[1693506307251,15.3513341,1663.7,1663.2,2.9297433]
[1693506307493,17.2387341,1663.7,1663.2,2.9297433]
[1693506309365,17.2387341,1663.7,1663.2,2.9277433]
[1693506309570,9.01724,1663.5,1663.2,2.9277433]
[1693506309948,9.01724,1663.5,1663.3,1.33615735]
[1693506310759,4.50862,1663.5,1663.3,1.33615735]
[1693506312692,12.71443341,1663.6,1663.3,1.33615735]
[1693506314181,10.99056,1663.6,1663.3,1.33615735]
[1693506318316,15.499,1663.6,1663.3,1.33615735]
[1693506318595,15.499,1663.6,1663.2,0.002]
[1693506318901,15.499,1663.6,1663.0,0.002]
[1693506319100,15.499,1663.6,1663.1,2.9277433]
[1693506319289,1.5499,1663.5,1663.3,1.33663841]
[1693506319503,4.50883,1663.4,1663.3,1.33663841]
[1693506320114,9.01766,1663.4,1663.1,2.9297433]
[1693506320822,9.01766,1663.4,1663.2,1.33673437]
[1693506321461,9.01766,1663.4,1663.1,2.9297433]
[1693506321659,10.723134,1663.4,1663.1,2.9297433]
[1693506321887,10.723134,1663.4,1663.3,1.33663841]
[1693506322087,10.723134,1663.4,1663.0,0.482]
[1693506322299,10.723134,1663.4,1663.1,0.002]
[1693506322467,10.723134,1663.4,1663.1,1.33945182]
[1693506323965,9.01766,1663.4,1663.1,1.33945182]
[1693506324795,4.50883,1663.4,1663.1,1.33945182]
[1693506330910,9.01766,1663.4,1663.1,1.33945182]
[1693506332009,13.52649,1663.4,1663.1,1.33945182]
[1693506332609,15.70879479,1663.4,1663.1,1.33945182]
[1693506332812,13.52811,1663.2,1663.1,0.002]
[1693506333015,13.52811,1663.2,1662.7,0.002]
[1693506333181,15.51811,1663.2,1662.7,2.9297433]
[1693506333381,9.01994,1663.0,1662.8,0.002]
[1693506333593,9.01994,1663.0,1662.7,2.9297433]
[1693506334494,9.01994,1663.0,1662.8,0.95314365]
[1693506337327,10.575221,1663.0,1662.8,0.95314365]
[1693506337484,15.085191,1663.0,1662.8,0.95314365]
[1693506338623,13.52991,1663.0,1662.8,0.95314365]
[1693506339694,13.52991,1663.0,1662.7,0.002]
[1693506339896,13.53183,1662.8,1662.4,0.002]
[1693506340201,13.53183,1662.8,1662.5,2.9277433]
[1693506340414,13.53183,1662.8,1662.5,3.88309989]
[1693506340631,13.53183,1662.8,1662.5,4.27140988]
[1693506341002,13.53183,1662.8,1662.5,0.95535659]
[1693506342247,13.53183,1662.8,1662.5,0.002]
[1693506342553,13.53183,1662.8,1662.1,1.04795418]
[1693506342755,9.02228,1662.6,1662.2,2.9297433]
[1693506342970,13.53342,1662.6,1662.3,0.002]
[1693506343191,13.53342,1662.6,1662.3,2.9297433]
[1693506343349,13.53342,1662.6,1662.3,3.31824774]
[1693506345474,13.53342,1662.6,1662.3,2.9297433]
[1693506349366,13.53342,1662.6,1662.4,0.95525491]
[1693506360354,13.75437588,1662.6,1662.4,0.92595558]
[1693506364876,0.22095588,1662.6,1662.4,3.85369888]
[1693506365073,0.22095588,1662.6,1662.5,2.9277433]
[1693506365380,0.22095588,1662.6,1662.5,9.65784319]
[1693506365585,0.22095588,1662.6,1662.5,10.6116447]
[1693506365766,0.22095588,1662.6,1662.5,6.1003747]
[1693506367874,0.22095588,1662.6,1662.5,4.36154481]
[1693506371374,0.22095588,1662.6,1662.5,8.87281481]
[1693506371705,1e-08,1662.6,1662.5,19.5715174]
[1693506372180,1e-08,1662.6,1662.5,21.4453174]
[1693506373269,1e-08,1662.6,1662.5,23.0451174]
[1693506374509,1e-08,1662.6,1662.5,18.5338474]
[1693506377513,1e-08,1662.6,1662.5,19.47937595]
[1693506377812,1e-08,1662.6,1662.5,23.0451174]
[1693506378023,1e-08,1662.6,1662.5,23.99064595]
[1693506379219,1e-08,1662.6,1662.5,32.68229358]
[1693506382139,1e-08,1662.6,1662.5,33.31276083]
[1693506382341,1e-08,1662.6,1662.5,32.36723228]
[1693506385427,30.6,1663.3,1662.7,2.998]
[1693506385632,1.9155,1663.5,1662.8,17.98627352]
[1693506385951,4.50862,1663.5,1662.9,1.80062735]
[1693506386239,1.9841,1663.4,1663.0,7.9194633]
[1693506386450,6.49294,1663.4,1663.1,0.002]
[1693506386665,6.49294,1663.4,1663.1,2.9297433]
[1693506387441,0.00333753,1663.3,1663.1,2.9297433]
[1693506387613,0.00333753,1663.3,1663.1,2.9277433]
[1693506388553,0.00333753,1663.3,1663.1,7.4372633]
[1693506388911,0.00333753,1663.3,1663.2,2.9277433]
[1693506389112,0.00333753,1663.3,1663.2,11.9464833]
[1693506390127,0.00333753,1663.3,1663.2,7.4371133]
[1693506394235,0.00333753,1663.3,1663.2,8.38940803]
[1693506395163,0.00333753,1663.3,1663.2,3.88003803]
[1693506403063,0.45455528,1663.3,1663.2,0.95229473]
[1693506403265,4.96365528,1663.3,1663.2,0.95229473]
[1693506403463,4.96365528,1663.3,1663.0,0.482]
[1693506403666,7.00205528,1663.3,1663.1,2.9277433]
[1693506404073,16.02025528,1663.3,1663.0,0.482]
[1693506404297,0.70020553,1663.2,1663.0,0.002]
[1693506404499,5.20965553,1663.2,1662.9,0.482]
[1693506404712,4.50945,1663.2,1662.9,3.4097433]
[1693506406304,9.0189,1663.2,1662.9,3.4097433]
[1693506406898,4.50945,1663.2,1662.9,3.4097433]
[1693506407411,9.0189,1663.2,1662.9,3.4097433]
[1693506408302,9.0189,1663.2,1662.9,2.9297433]
[1693506408509,10.62099553,1663.2,1662.9,2.9297433]
[1693506409418,10.62099553,1663.2,1663.0,0.95188485]
[1693506410215,6.11154553,1663.2,1663.0,0.95188485]
[1693506412844,2.04173753,1663.3,1663.0,0.95188485]
[1693506413002,2.04173753,1663.3,1663.0,5.46367485]
[1693506414933,2.04173753,1663.3,1663.1,2.9277433]
[1693506415631,6.55088753,1663.3,1663.1,2.9277433]
[1693506416405,11.06003753,1663.3,1663.1,2.9277433]
[1693506416732,17.31781428,1663.3,1663.0,0.95388485]
[1693506417119,12.80866428,1663.3,1663.0,0.95388485]
[1693506417631,17.31781428,1663.3,1663.0,0.95388485]
[1693506421232,6.55088753,1663.3,1663.0,0.95388485]
[1693506421445,2.04173753,1663.3,1663.0,0.95388485]
[1693506422337,6.55090753,1663.3,1663.0,0.95388485]
[1693506422712,11.06007753,1663.3,1663.0,0.95388485]
[1693506425317,6.55090753,1663.3,1663.0,0.95388485]
[1693506428052,2.04173753,1663.3,1663.0,0.95388485]
[1693506428951,0.00333753,1663.3,1663.0,3.88162815]
[1693506429153,0.00333753,1663.3,1663.0,5.17180097]
[1693506429367,4.51248753,1663.3,1663.0,5.17180097]
[1693506429770,9.02163753,1663.3,1663.0,5.17180097]
[1693506430083,10.279099,1663.3,1663.0,3.88162815]
[1693506432557,10.279099,1663.3,1663.0,0.95388485]
[1693506432798,14.788249,1663.3,1663.0,0.95388485]
[1693506436480,14.788149,1663.3,1663.0,0.95388485]
[1693506436767,16.80663585,1663.3,1663.0,0.95388485]
[1693506443670,17.29978916,1663.3,1663.0,0.95388485]
[1693506445250,17.30556716,1663.3,1663.0,0.95388485]
[1693506446080,18.8846165,1663.3,1663.0,0.95388485]
[1693506446988,1.26323947,1663.2,1663.0,0.95388485]
[1693506447192,1.26323947,1663.2,1663.0,0.95188485]
[1693506447193,9.0193,1663.1,1663.0,0.95188485]
[1693506447966,9.0193,1663.1,1662.8,0.002]
[1693506448175,9.0193,1663.1,1662.8,3.4097433]
[1693506448362,9.0193,1663.1,1663.0,1.05561482]
[1693506449095,9.0193,1663.1,1662.8,3.4097433]
[1693506452163,4.50965,1663.1,1662.8,3.3597433]
[1693506454299,4.50965,1663.1,1662.9,1.05402751]
[1693506454501,10.89124595,1663.1,1662.9,1.05402751]
[1693506462617,6.38159595,1663.1,1662.9,1.05402751]
[1693506463319,10.89124595,1663.1,1662.9,1.05402751]
[1693506464539,16.66413542,1663.1,1662.9,1.05402751]
[1693506464807,14.79299947,1663.0,1662.9,1.05402751]
[1693506465108,12.87425382,1663.0,1662.9,1.05402751]
[1693506465309,8.36433382,1663.0,1662.9,1.05402751]
[1693506465511,9.62775245,1663.0,1662.7,0.002]
[1693506465690,9.93700311,1663.0,1662.7,0.002]
[1693506465899,1.9023,1662.9,1662.7,0.002]
[1693506466094,1.9023,1662.9,1662.8,0.96580953]
[1693506466391,7.59642031,1662.9,1662.6,0.002]
[1693506468804,1.18393031,1662.9,1662.6,4.51298]
[1693506469001,5.00261863,1663.0,1662.6,9.02398]
[1693506469200,3.7392,1663.0,1662.7,0.002]
[1693506469410,3.7392,1663.0,1662.7,0.96788702]
[1693506469606,3.7392,1663.0,1662.7,0.002]
[1693506470391,8.24913,1663.0,1662.7,0.002]
[1693506470601,0.824913,1662.9,1662.7,0.002]
[1693506470787,0.824913,1662.9,1662.6,4.51286]
[1693506473099,0.824913,1662.9,1662.6,0.002]
[1693506473623,5.335113,1662.9,1662.6,0.002]
[1693506475510,9.845313,1662.9,1662.6,0.002]
[1693506475687,0.9845313,1662.8,1662.6,0.002]
[1693506475888,14.5161313,1662.8,1662.5,1.9854]
[1693506476094,14.5161313,1662.8,1662.5,0.002]
[1693506476321,16.4383313,1662.8,1662.3,0.002]
[1693506476617,1.64383313,1662.7,1662.3,3.4097433]
[1693506476920,9.02212,1662.6,1662.4,0.002]
[1693506477119,9.02212,1662.6,1662.3,3.4097433]
[1693506477316,13.53318,1662.6,1662.3,3.4097433]
[1693506477518,0.00442915,1662.5,1662.3,0.002]
[1693506477720,0.00442915,1662.5,1662.2,1.9757]
[1693506477721,4.51154,1662.4,1662.2,1.9757]
[1693506477929,4.51154,1662.4,1662.2,4.9014433]
[1693506478102,4.51154,1662.4,1662.2,2.9277433]
[1693506478300,0.90272892,1662.4,1662.2,2.9277433]
[1693506478501,9.92588892,1662.4,1662.1,0.002]
[1693506478705,9.92588892,1662.4,1662.1,2.9297433]
[1693506478906,14.43750892,1662.4,1662.1,2.9297433]
[1693506479321,16.28120892,1662.4,1662.1,2.9297433]
[1693506479495,11.76958892,1662.4,1662.1,2.9297433]
[1693506483088,1.17695889,1662.3,1662.1,0.002]
[1693506483316,1.17695889,1662.3,1662.0,1.9757]
[1693506483632,5.68897889,1662.3,1662.0,4.9034433]
[1693506484531,5.68897889,1662.3,1662.1,0.96184778]
[1693506487332,4.51202,1662.3,1662.1,0.96184778]
[1693506492746,13.53586,1662.3,1662.1,0.96184778]
[1693506494379,14.47944442,1662.3,1662.1,0.96184778]
[1693506494872,0.94358442,1662.3,1662.1,0.96184778]
[1693506495031,0.94358442,1662.3,1662.1,8.40194108]
[1693506495236,0.94358442,1662.3,1662.1,9.69357819]
[1693506496065,9.02713915,1662.5,1662.1,9.69357819]
[1693506496266,9.02713915,1662.5,1662.2,0.002]
[1693506496453,0.00442915,1662.5,1662.2,16.4659033]
[1693506496655,0.00442915,1662.5,1662.3,1.64659033]
[1693506497055,4.51571915,1662.5,1662.2,4.7334433]
[1693506497465,0.00442915,1662.5,1662.2,9.2455033]
[1693506497965,0.00442915,1662.5,1662.2,13.7575933]
[1693506498138,0.00442915,1662.5,1662.2,9.2455033]
[1693506499340,0.00442915,1662.5,1662.3,0.96286949]
[1693506499672,0.00442915,1662.5,1662.3,1.98370677]
[1693506500740,4.51571915,1662.5,1662.3,1.98370677]
[1693506500946,4.51571915,1662.5,1662.3,0.96286949]
[1693506502156,9.02700915,1662.5,1662.3,0.96286949]
[1693506502460,13.53829915,1662.5,1662.3,0.96286949]
[1693506502969,13.53829915,1662.5,1662.0,1.93]
[1693506503272,15.49629915,1662.5,1662.1,0.002]
[1693506503471,4.51182,1662.3,1662.1,0.002]
[1693506503645,4.51182,1662.3,1662.1,0.48577433]
[1693506505665,4.51162,1662.4,1662.1,0.48577433]
[1693506505868,4.51162,1662.4,1662.1,0.48777433]
[1693506506071,12.85802915,1662.5,1662.1,0.48777433]
[1693506506260,12.85802915,1662.5,1662.2,0.002]
[1693506506441,8.34661915,1662.5,1662.2,0.002]
[1693506507262,12.85801915,1662.5,1662.2,0.002]
[1693506508976,8.34661915,1662.5,1662.2,0.002]
[1693506509483,0.00442915,1662.5,1662.2,13.49987093]
[1693506509658,0.00442915,1662.5,1662.2,10.28739073]
[1693506513290,4.51574915,1662.5,1662.2,5.77535073]
[1693506513493,9.02706915,1662.5,1662.2,5.2753433]
[1693506514473,9.02706915,1662.5,1662.3,0.96294831]
[1693506515778,13.53838915,1662.5,1662.3,0.96294831]
[1693506516269,13.53838915,1662.5,1662.2,0.002]
[1693506516453,15.48628915,1662.5,1662.0,1.04810698]
[1693506516779,1.54862892,1662.4,1662.1,0.002]
[1693506517077,9.02364,1662.3,1662.1,0.002]
[1693506517265,10.91624,1662.3,1662.0,2.9297433]
[1693506526593,15.42806,1662.3,1662.0,0.002]
[1693506527277,6.40442,1662.3,1662.0,0.002]
[1693506528487,12.61387689,1662.3,1662.0,0.002]
[1693506529263,12.61387689,1662.3,1662.1,0.95070905]
[1693506530485,8.10205689,1662.3,1662.1,0.95070905]
[1693506530809,12.61387689,1662.3,1662.1,0.95070905]
[1693506531481,3.59023689,1662.3,1662.1,0.95070905]
[1693506531801,1.8926,1662.3,1662.1,0.95070905]
[1693506532392,6.40444,1662.3,1662.1,0.95070905]
[1693506535598,4.51184,1662.3,1662.1,0.95070905]
[1693506535766,11.20030959,1662.5,1662.1,5.46306905]
[1693506535966,15.71181959,1662.5,1662.2,0.002]
[1693506536189,17.7830371,1662.5,1662.2,0.002]
[1693506536696,5.77487338,1662.4,1662.2,0.002]
[1693506536899,5.77487338,1662.4,1662.1,0.95270905]
[1693506537764,4.51165,1662.4,1662.1,0.95270905]
[1693506538666,1.26765253,1662.5,1662.2,2.9277433]
[1693506538861,1.26765253,1662.5,1662.2,4.21825953]
[1693506539101,4.51570915,1662.5,1662.2,4.21825953]
[1693506539607,4.51570915,1662.5,1662.2,8.73028953]
[1693506539608,0.00442915,1662.5,1662.2,8.73028953]
[1693506539768,0.00442915,1662.5,1662.2,13.24237953]
[1693506540166,0.00442915,1662.5,1662.2,8.73028953]
[1693506540368,0.00442915,1662.5,1662.3,0.87302895]
[1693506540562,0.00442915,1662.5,1662.3,8.31258225]
[1693506540767,0.00442915,1662.5,1662.3,3.80077225]
[1693506544181,0.00442915,1662.5,1662.4,0.94761276]
[1693506557396,0.00442915,1662.5,1662.4,5.45915276]
[1693506557603,0.00442915,1662.5,1662.4,14.17833283]
[1693506559818,0.00442915,1662.5,1662.4,9.66679283]
[1693506560692,0.00442915,1662.5,1662.4,5.15525283]
[1693506560901,0.00442915,1662.5,1662.4,3.87535606]
[1693506565429,4.51569915,1662.5,1662.4,3.87535606]
[1693506567542,4.52064892,1662.5,1662.4,3.87535606]
[1693506570139,0.00937892,1662.5,1662.4,3.87535606]
[1693506571339,4.52064892,1662.5,1662.4,3.87535606]
[1693506571637,4.52064892,1662.5,1662.4,0.94761276]
[1693506572339,4.52064892,1662.5,1662.1,1.8823]
[1693506572529,4.52064892,1662.5,1662.4,0.93598658]
[1693506573039,4.52064892,1662.5,1662.2,3.4077433]
[1693506574237,4.52064892,1662.5,1662.3,0.93626162]
[1693506574437,4.52064892,1662.5,1662.3,3.86400492]
[1693506577207,9.03191892,1662.5,1662.3,0.93626162]
[1693506577407,4.52064892,1662.5,1662.3,0.93626162]
[1693506580745,4.52064892,1662.5,1662.3,0.93626162]
[1693506587391,0.00937892,1662.5,1662.3,0.93626162]
[1693506593035,4.52064892,1662.5,1662.3,0.93626162]
[1693506593571,4.99964552,1662.5,1662.3,0.93626162]
[1693506595234,6.26113679,1662.5,1662.3,0.93626162]
[1693506595537,16.545804,1662.5,1662.3,0.93626162]
[1693506595735,12.034534,1662.5,1662.0,3.3903]
[1693506595962,2.009,1662.4,1662.1,3.4097433]
[1693506596275,4.51182,1662.3,1662.1,3.4097433]
[1693506596438,4.51182,1662.3,1662.2,0.93633848]
[1693506597276,4.51182,1662.3,1662.1,3.4077433]
[1693506599878,4.51182,1662.3,1662.1,3.93607763]
[1693506600564,11.03237,1662.4,1662.1,3.93607763]
[1693506600763,11.03237,1662.4,1662.1,3.93807763]
[1693506602892,15.54405,1662.4,1662.1,3.4097433]
[1693506603189,15.54405,1662.4,1662.1,0.002]
[1693506605679,11.03236,1662.4,1662.1,0.002]
[1693506606764,15.54404,1662.4,1662.1,0.002]
[1693506606978,15.54404,1662.4,1661.9,7.12067339]
[1693506607178,15.54404,1662.4,1662.0,2.9297433]
[1693506607179,4.51209,1662.2,1662.0,2.9297433]
[1693506607367,4.51209,1662.2,1661.9,0.002]
[1693506607575,4.51209,1662.2,1661.9,4.45585211]
[1693506607770,4.51209,1662.2,1661.9,3.4097433]
[1693506609497,6.41519,1662.3,1661.9,7.9226233]
[1693506609698,6.41519,1662.3,1662.0,0.002]
[1693506610600,6.52055,1662.4,1662.0,7.4423533]
[1693506610800,6.52055,1662.4,1662.1,0.002]
[1693506613075,6.52055,1662.4,1662.1,11.9544433]
[1693506613076,2.009,1662.4,1662.1,11.9544433]
[1693506613282,1.27150613,1662.5,1662.2,5.70746433]
[1693506614590,1.27150613,1662.5,1662.2,1.19544433]
[1693506615617,1.27150613,1662.5,1662.2,5.70750433]
[1693506615772,1.27150613,1662.5,1662.2,8.63524763]
[1693506618503,5.78278613,1662.5,1662.2,4.12318763]
[1693506622812,5.77826659,1662.5,1662.2,4.12318763]
[1693506625210,1.26698659,1662.5,1662.2,4.12318763]
[1693506625417,5.77827659,1662.5,1662.3,0.41231876]
[1693506625710,5.77827659,1662.5,1662.2,2.9277433]
[1693506628012,5.77827659,1662.5,1662.1,4.51417]
[1693506628013,1.26698659,1662.5,1662.3,2.9277433]
[1693506628312,1.26698659,1662.5,1662.3,3.4077433]
[1693506628313,0.00485938,1662.5,1662.3,3.4077433]
[1693506629015,5.77828659,1662.5,1662.3,3.4077433]
[1693506629310,4.51615938,1662.5,1662.3,3.4077433]
[1693506629514,5.77828659,1662.5,1662.3,3.4077433]
[1693506629691,10.28958659,1662.5,1662.1,0.002]
[1693506629896,6.46712,1662.4,1662.2,2.9277433]
[1693506630308,10.97884,1662.4,1662.2,2.9277433]
[1693506630708,4.51561679,1662.3,1662.2,2.9277433]
[1693506630889,4.51561679,1662.3,1662.2,3.4077433]
[1693506631699,4.51561679,1662.3,1662.0,1.8136]
[1693506632032,13.53925679,1662.3,1662.0,2.9297433]
[1693506634419,15.21493519,1662.3,1662.0,0.002]
[1693506634632,15.21493519,1662.3,1661.9,1.52813126]
[1693506634921,10.91045,1662.2,1662.0,0.002]